Workbook

Sheet Overview
A4: SPECapc 3ds Max 2014 Benchmark Results
B7: Composite Scores | C7: CPU Composite Score | E7: =GEOMEAN('Computed Results'!Q23,'Computed Results'!Q35:Q37,'Computed Results'!Q46:Q50) -> 4.66709945
C8: GPU Composite Score | E8: =GEOMEAN('Computed Results'!Q3:Q22,'Computed Results'!Q24,'Computed Results'!Q25:Q34,'Computed Results'!Q38:Q45) -> 3.681969612
C9: Large Model Composite Score | E9: =GEOMEAN('Computed Results'!Q23:Q24) -> 3.755428504
B10: SubTest Scores | C10: Large Model CPU | E10: ='Computed Results'!S26 -> 2.487785727
C11: LargeModel GPU | E11: ='Computed Results'!S27 -> 5.668994358
C12: Interactive Graphics | E12: ='Computed Results'!S17 -> 3.635335915
C13: Advanced Visual Styles | E13: ='Computed Results'!S24 -> 4.800842715
C14: Modeling | E14: ='Computed Results'!S36 -> 2.948993026
C15: CPU Computing | E15: ='Computed Results'!S39 -> 3.440268507
C16: CPU Rendering | E16: ='Computed Results'!S52 -> 6.355748465
C17: GPU Rendering | E17: ='Computed Results'!S47 -> 3.858508609
B19: Resolution: | C19: =Results1!H3 -> [1920,1200]
B20: Date: | C20: =Results1!H4 -> 7/29/2014 3:07:58 PM
B21: Anti-Alias Setting: | C21: =TestConfig!G2 -> AASetting="none"
B22: Graphics Card: | C22: =SystemInformation!G4 -> NVIDIA Quadro K5000
B23: Graphics Driver: | C23: =SystemInformation!G7 -> 9.18.13.3250

Sheet Results1
A1: ID | B1: Name | C1: TestType | D1: Time | E1: Weighting
A2: Test0541 | B2: Architecture Basic | C2: Interactive Graphics | D2: 17.999 | E2: 1 | G2: Graphics
A3: Test0542 | B3: Architecture Advanced Styles | C3: Interactive Graphics | D3: 49.236 | E3: 1 | G3: Resolution | H3: [1920,1200]
A4: Test0410 | B4: Brutal Flower - Multiple Object Stress | C4: Interactive Graphics | D4: 15.22 | E4: 1 | G4: Date | H4: 7/29/2014 3:07:58 PM
A5: Test0400 | B5: Max Hardware Light Test | C5: Interactive Graphics | D5: 5.15 | E5: 1
A6: Test0622 | B6: HugeFish Smooth | C6: Interactive Graphics | D6: 55.292 | E6: 1
A7: Test0625 | B7: HugeFish Rotate | C7: Interactive Graphics | D7: 13.693 | E7: 1
A8: Test0340 | B8: IK Group | C8: Interactive Graphics | D8: 15.468 | E8: 1
A9: Test0323 | B9: Opacity Performance - Blended | C9: Interactive Graphics | D9: 6.499 | E9: 1
A10: Test0390 | B10: Particle Tests | C10: Interactive Graphics | D10: 3.388 | E10: 1
A11: Test0140 | B11: Moving Blended Lights | C11: Interactive Graphics | D11: 10.292 | E11: 1
A12: Test0600 | B12: SpaceFlyby Wireframe | C12: Interactive Graphics | D12: 14.327 | E12: 1
A13: Test0601 | B13: SpaceFlyby Smooth with Edges | C13: Interactive Graphics | D13: 24.12 | E13: 1
A14: Test0602 | B14: SpaceFlyby Smooth | C14: Interactive Graphics | D14: 20.219 | E14: 1
A15: Test1510 | B15: SpiderWalk - Playback | C15: Interactive Graphics | D15: 34.714 | E15: 1
A16: Test0044 | B16: Brutal Flower - Advanced Viewport | C16: Advanced Visual Styles | D16: 55.447 | E16: 1
A17: Test0040 | B17: Building Flyby | C17: Advanced Visual Styles | D17: 4.831 | E17: 1
A18: Test0045 | B18: MeshSmooth-Polygon Spaceship | C18: Advanced Visual Styles | D18: 5.304 | E18: 1
A19: Test2040 | B19: FishFlock Smooth | C19: Advanced Visual Styles | D19: 7.275 | E19: 1
A20: Test0531 | B20: UnderWater Animation | C20: Advanced Visual Styles | D20: 15.399 | E20: 1
A21: Test0210 | B21: Softbody Objects - Flag | C21: Advanced Visual Styles | D21: 7.296 | E21: 1
A22: Test8020 | B22: Building City | C22: Large Model CPU | D22: 196.228 | E22: 1
A23: Test8030 | B23: Moving City | C23: Large Model GPU | D23: 49.74 | E23: 1
A24: Test0050 | B24: Changing Color Test | C24: Modeling | D24: 2.74 | E24: 1
A25: Test0070 | B25: SubObject Vertices | C25: Modeling | D25: 0.832 | E25: 1
A26: Test0100 | B26: Extrude Faces | C26: Modeling | D26: 2.507 | E26: 1
A27: Test0110 | B27: Bevel Faces | C27: Modeling | D27: 1.402 | E27: 1
A28: Test0041 | B28: Gizmo Transforms - Move | C28: Modeling | D28: 1.641 | E28: 1
A29: Test0042 | B29: Gizmo Transforms - Rotate | C29: Modeling | D29: 1.242 | E29: 1
A30: Test0043 | B30: Gizmo Transforms - Scale | C30: Modeling | D30: 2.697 | E30: 1
A31: Test0370 | B31: Create Tank Scene | C31: Modeling | D31: 14.527 | E31: 1
A32: Test0121 | B32: Vertex Soft-Selection | C32: Modeling | D32: 6.146 | E32: 1
A33: Test0130 | B33: Multi-SubObject Texturing | C33: Modeling | D33: 18.459 | E33: 1
A34: Test0125 | B34: Create Textures | C34: CPU Computing | D34: 25.285 | E34: 1
A35: Test1000 | B35: Radiosity | C35: CPU Computing | D35: 7.677 | E35: 1
A36: Test1500 | B36: SpiderWalk - Create Walk Cycle | C36: CPU Computing | D36: 9.837 | E36: 1
A37: Test1070 | B37: Quicksilver-Green Apples Basic | C37: GPU Rendering | D37: 5.739 | E37: 1
A38: Test1075 | B38: Quicksilver-Green Apples Advanced | C38: GPU Rendering | D38: 3.425 | E38: 1
A39: Test1090 | B39: Quicksilver - Army Camp | C39: GPU Rendering | D39: 23.332 | E39: 1
A40: Test1100 | B40: Quicksilver - Chess Baisc | C40: GPU Rendering | D40: 6.306 | E40: 1
A41: Test1105 | B41: Quicksilver - Chess Advanced | C41: GPU Rendering | D41: 6.291 | E41: 1
A42: Test1110 | B42: Quicksilver - Chess Short | C42: GPU Rendering | D42: 5.472 | E42: 1
A43: Test1120 | B43: Quicksilver - Chess DOF | C43: GPU Rendering | D43: 4.584 | E43: 1
A44: Test1520 | B44: SpiderWalk - Quicksilver Render | C44: GPU Rendering | D44: 9.304 | E44: 1
A45: Test8120 | B45: Mental Ray - Train Engine | C45: CPU Rendering | D45: 68.871 | E45: 1
A46: Test1095 | B46: Mental Ray - Army Camp | C46: CPU Rendering | D46: 156.446 | E46: 1
A47: Test1115 | B47: Mental Ray - Chess Short | C47: CPU Rendering | D47: 70.103 | E47: 1
A48: Test1040 | B48: UnderWater | C48: CPU Rendering | D48: 15.563 | E48: 1
A49: Test1060 | B49: UnderwaterEscape | C49: CPU Rendering | D49: 12.021 | E49: 1

Sheet Results2
A1: ID | B1: Name | C1: TestType | D1: Time | E1: Weighting
A2: Test0541 | B2: Architecture Basic | C2: Interactive Graphics | D2: 17.638 | E2: 1 | G2: Graphics
A3: Test0542 | B3: Architecture Advanced Styles | C3: Interactive Graphics | D3: 49.733 | E3: 1 | G3: Resolution | H3: [1920,1200]
A4: Test0410 | B4: Brutal Flower - Multiple Object Stress | C4: Interactive Graphics | D4: 15.297 | E4: 1 | G4: Date | H4: 7/29/2014 3:30:20 PM
A5: Test0400 | B5: Max Hardware Light Test | C5: Interactive Graphics | D5: 5.145 | E5: 1
A6: Test0622 | B6: HugeFish Smooth | C6: Interactive Graphics | D6: 55.805 | E6: 1
A7: Test0625 | B7: HugeFish Rotate | C7: Interactive Graphics | D7: 13.74 | E7: 1
A8: Test0340 | B8: IK Group | C8: Interactive Graphics | D8: 15.376 | E8: 1
A9: Test0323 | B9: Opacity Performance - Blended | C9: Interactive Graphics | D9: 6.817 | E9: 1
A10: Test0390 | B10: Particle Tests | C10: Interactive Graphics | D10: 3.347 | E10: 1
A11: Test0140 | B11: Moving Blended Lights | C11: Interactive Graphics | D11: 10.291 | E11: 1
A12: Test0600 | B12: SpaceFlyby Wireframe | C12: Interactive Graphics | D12: 14.361 | E12: 1
A13: Test0601 | B13: SpaceFlyby Smooth with Edges | C13: Interactive Graphics | D13: 24.245 | E13: 1
A14: Test0602 | B14: SpaceFlyby Smooth | C14: Interactive Graphics | D14: 20.407 | E14: 1
A15: Test1510 | B15: SpiderWalk - Playback | C15: Interactive Graphics | D15: 34.477 | E15: 1
A16: Test0044 | B16: Brutal Flower - Advanced Viewport | C16: Advanced Visual Styles | D16: 55.438 | E16: 1
A17: Test0040 | B17: Building Flyby | C17: Advanced Visual Styles | D17: 4.713 | E17: 1
A18: Test0045 | B18: MeshSmooth-Polygon Spaceship | C18: Advanced Visual Styles | D18: 5.128 | E18: 1
A19: Test2040 | B19: FishFlock Smooth | C19: Advanced Visual Styles | D19: 6.819 | E19: 1
A20: Test0531 | B20: UnderWater Animation | C20: Advanced Visual Styles | D20: 15.417 | E20: 1
A21: Test0210 | B21: Softbody Objects - Flag | C21: Advanced Visual Styles | D21: 7.316 | E21: 1
A22: Test8020 | B22: Building City | C22: Large Model CPU | D22: 194.811 | E22: 1
A23: Test8030 | B23: Moving City | C23: Large Model GPU | D23: 50.974 | E23: 1
A24: Test0050 | B24: Changing Color Test | C24: Modeling | D24: 2.714 | E24: 1
A25: Test0070 | B25: SubObject Vertices | C25: Modeling | D25: 0.83 | E25: 1
A26: Test0100 | B26: Extrude Faces | C26: Modeling | D26: 2.495 | E26: 1
A27: Test0110 | B27: Bevel Faces | C27: Modeling | D27: 1.4 | E27: 1
A28: Test0041 | B28: Gizmo Transforms - Move | C28: Modeling | D28: 1.659 | E28: 1
A29: Test0042 | B29: Gizmo Transforms - Rotate | C29: Modeling | D29: 1.25 | E29: 1
A30: Test0043 | B30: Gizmo Transforms - Scale | C30: Modeling | D30: 2.552 | E30: 1
A31: Test0370 | B31: Create Tank Scene | C31: Modeling | D31: 14.603 | E31: 1
A32: Test0121 | B32: Vertex Soft-Selection | C32: Modeling | D32: 6.116 | E32: 1
A33: Test0130 | B33: Multi-SubObject Texturing | C33: Modeling | D33: 18.773 | E33: 1
A34: Test0125 | B34: Create Textures | C34: CPU Computing | D34: 24.901 | E34: 1
A35: Test1000 | B35: Radiosity | C35: CPU Computing | D35: 8.523 | E35: 1
A36: Test1500 | B36: SpiderWalk - Create Walk Cycle | C36: CPU Computing | D36: 9.653 | E36: 1
A37: Test1070 | B37: Quicksilver-Green Apples Basic | C37: GPU Rendering | D37: 5.751 | E37: 1
A38: Test1075 | B38: Quicksilver-Green Apples Advanced | C38: GPU Rendering | D38: 3.394 | E38: 1
A39: Test1090 | B39: Quicksilver - Army Camp | C39: GPU Rendering | D39: 23.256 | E39: 1
A40: Test1100 | B40: Quicksilver - Chess Baisc | C40: GPU Rendering | D40: 6.223 | E40: 1
A41: Test1105 | B41: Quicksilver - Chess Advanced | C41: GPU Rendering | D41: 6.258 | E41: 1
A42: Test1110 | B42: Quicksilver - Chess Short | C42: GPU Rendering | D42: 5.387 | E42: 1
A43: Test1120 | B43: Quicksilver - Chess DOF | C43: GPU Rendering | D43: 4.498 | E43: 1
A44: Test1520 | B44: SpiderWalk - Quicksilver Render | C44: GPU Rendering | D44: 9.182 | E44: 1
A45: Test8120 | B45: Mental Ray - Train Engine | C45: CPU Rendering | D45: 67.94 | E45: 1
A46: Test1095 | B46: Mental Ray - Army Camp | C46: CPU Rendering | D46: 151.99 | E46: 1
A47: Test1115 | B47: Mental Ray - Chess Short | C47: CPU Rendering | D47: 67.179 | E47: 1
A48: Test1040 | B48: UnderWater | C48: CPU Rendering | D48: 15.428 | E48: 1
A49: Test1060 | B49: UnderwaterEscape | C49: CPU Rendering | D49: 11.723 | E49: 1

Sheet Results3
A1: ID | B1: Name | C1: TestType | D1: Time | E1: Weighting
A2: Test0541 | B2: Architecture Basic | C2: Interactive Graphics | D2: 17.891 | E2: 1 | G2: Graphics
A3: Test0542 | B3: Architecture Advanced Styles | C3: Interactive Graphics | D3: 48.988 | E3: 1 | G3: Resolution | H3: [1920,1200]
A4: Test0410 | B4: Brutal Flower - Multiple Object Stress | C4: Interactive Graphics | D4: 15.3 | E4: 1 | G4: Date | H4: 7/29/2014 3:52:33 PM
A5: Test0400 | B5: Max Hardware Light Test | C5: Interactive Graphics | D5: 5.127 | E5: 1
A6: Test0622 | B6: HugeFish Smooth | C6: Interactive Graphics | D6: 55.976 | E6: 1
A7: Test0625 | B7: HugeFish Rotate | C7: Interactive Graphics | D7: 13.756 | E7: 1
A8: Test0340 | B8: IK Group | C8: Interactive Graphics | D8: 15.359 | E8: 1
A9: Test0323 | B9: Opacity Performance - Blended | C9: Interactive Graphics | D9: 6.8 | E9: 1
A10: Test0390 | B10: Particle Tests | C10: Interactive Graphics | D10: 3.386 | E10: 1
A11: Test0140 | B11: Moving Blended Lights | C11: Interactive Graphics | D11: 10.288 | E11: 1
A12: Test0600 | B12: SpaceFlyby Wireframe | C12: Interactive Graphics | D12: 14.315 | E12: 1
A13: Test0601 | B13: SpaceFlyby Smooth with Edges | C13: Interactive Graphics | D13: 24.177 | E13: 1
A14: Test0602 | B14: SpaceFlyby Smooth | C14: Interactive Graphics | D14: 20.243 | E14: 1
A15: Test1510 | B15: SpiderWalk - Playback | C15: Interactive Graphics | D15: 34.612 | E15: 1
A16: Test0044 | B16: Brutal Flower - Advanced Viewport | C16: Advanced Visual Styles | D16: 55.475 | E16: 1
A17: Test0040 | B17: Building Flyby | C17: Advanced Visual Styles | D17: 4.706 | E17: 1
A18: Test0045 | B18: MeshSmooth-Polygon Spaceship | C18: Advanced Visual Styles | D18: 5.121 | E18: 1
A19: Test2040 | B19: FishFlock Smooth | C19: Advanced Visual Styles | D19: 7.264 | E19: 1
A20: Test0531 | B20: UnderWater Animation | C20: Advanced Visual Styles | D20: 15.4 | E20: 1
A21: Test0210 | B21: Softbody Objects - Flag | C21: Advanced Visual Styles | D21: 7.263 | E21: 1
A22: Test8020 | B22: Building City | C22: Large Model CPU | D22: 194.854 | E22: 1
A23: Test8030 | B23: Moving City | C23: Large Model GPU | D23: 49.978 | E23: 1
A24: Test0050 | B24: Changing Color Test | C24: Modeling | D24: 2.713 | E24: 1
A25: Test0070 | B25: SubObject Vertices | C25: Modeling | D25: 0.826 | E25: 1
A26: Test0100 | B26: Extrude Faces | C26: Modeling | D26: 2.502 | E26: 1
A27: Test0110 | B27: Bevel Faces | C27: Modeling | D27: 1.4 | E27: 1
A28: Test0041 | B28: Gizmo Transforms - Move | C28: Modeling | D28: 1.632 | E28: 1
A29: Test0042 | B29: Gizmo Transforms - Rotate | C29: Modeling | D29: 1.245 | E29: 1
A30: Test0043 | B30: Gizmo Transforms - Scale | C30: Modeling | D30: 2.671 | E30: 1
A31: Test0370 | B31: Create Tank Scene | C31: Modeling | D31: 14.569 | E31: 1
A32: Test0121 | B32: Vertex Soft-Selection | C32: Modeling | D32: 6.129 | E32: 1
A33: Test0130 | B33: Multi-SubObject Texturing | C33: Modeling | D33: 18.72 | E33: 1
A34: Test0125 | B34: Create Textures | C34: CPU Computing | D34: 25.987 | E34: 1
A35: Test1000 | B35: Radiosity | C35: CPU Computing | D35: 7.566 | E35: 1
A36: Test1500 | B36: SpiderWalk - Create Walk Cycle | C36: CPU Computing | D36: 10.27 | E36: 1
A37: Test1070 | B37: Quicksilver-Green Apples Basic | C37: GPU Rendering | D37: 5.744 | E37: 1
A38: Test1075 | B38: Quicksilver-Green Apples Advanced | C38: GPU Rendering | D38: 3.44 | E38: 1
A39: Test1090 | B39: Quicksilver - Army Camp | C39: GPU Rendering | D39: 23.372 | E39: 1
A40: Test1100 | B40: Quicksilver - Chess Baisc | C40: GPU Rendering | D40: 6.292 | E40: 1
A41: Test1105 | B41: Quicksilver - Chess Advanced | C41: GPU Rendering | D41: 6.293 | E41: 1
A42: Test1110 | B42: Quicksilver - Chess Short | C42: GPU Rendering | D42: 5.435 | E42: 1
A43: Test1120 | B43: Quicksilver - Chess DOF | C43: GPU Rendering | D43: 4.489 | E43: 1
A44: Test1520 | B44: SpiderWalk - Quicksilver Render | C44: GPU Rendering | D44: 9.214 | E44: 1
A45: Test8120 | B45: Mental Ray - Train Engine | C45: CPU Rendering | D45: 68.396 | E45: 1
A46: Test1095 | B46: Mental Ray - Army Camp | C46: CPU Rendering | D46: 154.267 | E46: 1
A47: Test1115 | B47: Mental Ray - Chess Short | C47: CPU Rendering | D47: 67.803 | E47: 1
A48: Test1040 | B48: UnderWater | C48: CPU Rendering | D48: 15.613 | E48: 1
A49: Test1060 | B49: UnderwaterEscape | C49: CPU Rendering | D49: 11.827 | E49: 1

Sheet Baseline
A1: TestType | B1: ID | C1: Name | D1: Run 1 | E1: Run 2 | F1: Run 3 | G1: Run 4 | H1: Weighting | I1: Median 1,2,3
A2: Interactive Graphics | B2: Test0541 | C2: Architecture Basic | D2: 73.818 | E2: 75.199 | F2: 56.788 | H2: 1 | I2: =MEDIAN(D2:F2) -> 73.818
A3: High Quality Graphics | B3: Test0542 | C3: Architecture Advanced Styles | D3: 368.434 | E3: 369.385 | F3: 367.771 | H3: 1 | I3: =MEDIAN(D3:F3) -> 368.434
A4: Interactive Graphics | B4: Test0410 | C4: Brutal Flower - Multiple Object Stress | D4: 43.213 | E4: 42.864 | F4: 43.104 | H4: 1 | I4: =MEDIAN(D4:F4) -> 43.104
A5: Interactive Graphics | B5: Test0400 | C5: Max Hardware Light Test | D5: 39.868 | E5: 39.808 | F5: 39.832 | H5: 1 | I5: 39.832
A6: Interactive Graphics | B6: Test0622 | C6: HugeFish Smooth | D6: 217.945 | E6: 223.053 | F6: 225.231 | H6: 1 | I6: 223.053
A7: Interactive Graphics | B7: Test0625 | C7: HugeFish Rotate | D7: 51.637 | E7: 55.231 | F7: 55.223 | H7: 1 | I7: 55.223
A8: Interactive Graphics | B8: Test0340 | C8: IK Group | D8: 37.89 | E8: 37.129 | F8: 36.991 | H8: 1 | I8: 37.129
A9: Interactive Graphics | B9: Test0323 | C9: Opacity Performance - Blended | D9: 44.277 | E9: 44.137 | F9: 44.115 | H9: 1 | I9: 44.137
A10: Interactive Graphics | B10: Test0390 | C10: Particle Tests | D10: 6.372 | E10: 6.212 | F10: 6.175 | H10: 1 | I10: 6.212
A11: Interactive Graphics | B11: Test0140 | C11: Moving Blended Lights | D11: 72.17 | E11: 72.007 | F11: 72.287 | H11: 1 | I11: 72.17
A12: Interactive Graphics | B12: Test0600 | C12: SpaceFlyby Wireframe | D12: 35.062 | E12: 34.592 | F12: 35.048 | H12: 1 | I12: 35.048
A13: Interactive Graphics | B13: Test0601 | C13: SpaceFlyby Smooth with Edges | D13: 56.693 | E13: 55.695 | F13: 56.394 | H13: 1 | I13: 56.394
A14: Interactive Graphics | B14: Test0602 | C14: SpaceFlyby Smooth | D14: 47.656 | E14: 47.376 | F14: 47.746 | H14: 1 | I14: 47.656
A15: Interactive Graphics | B15: Test1510 | C15: SpiderWalk - Playback | D15: 100.502 | E15: 82.989 | F15: 83.144 | H15: 1 | I15: 83.144
A16: Advanced Visual Styles | B16: Test2050 | C16: Brutal Flower - Advanced Viewport | D16: 249.687 | E16: 269.923 | F16: 269.886 | H16: 1 | I16: 269.886
A17: Advanced Visual Styles | B17: Test0040 | C17: Building Flyby | D17: 34.226 | E17: 33.763 | F17: 33.833 | H17: 1 | I17: 33.833
A18: Advanced Visual Styles | B18: Test2010 | C18: MeshSmooth-Polygon Spaceship | D18: 27.462 | E18: 32.625 | F18: 32.639 | H18: 1 | I18: 32.625
A19: Advanced Visual Styles | B19: Test2040 | C19: FishFlock Smooth | D19: 20.031 | E19: 18.788 | F19: 19.658 | H19: 1 | I19: 19.658
A20: Advanced Visual Styles | B20: Test0531 | C20: UnderWater Animation | D20: 102.126 | E20: 105.424 | F20: 105.51 | H20: 1 | I20: 105.424
A21: Advanced Visual Styles | B21: Test0210 | C21: Softbody Objects - Flag | D21: 21.724 | E21: 21.69 | F21: 21.67 | H21: 1 | I21: 21.69
A22: Large Model CPU | B22: Test0020 | C22: Building City | D22: 487.683 | E22: 484.705 | F22: 484.755 | H22: 1 | I22: 484.755
A23: Large Model GPU | B23: Test0030 | C23: Moving City | D23: 284.654 | E23: 283.325 | F23: 281.086 | H23: 1 | I23: 283.325
A24: Modeling | B24: Test0050 | C24: Changing Color Test | D24: 14.513 | E24: 14.485 | F24: 14.479 | H24: 1 | I24: 14.485
A25: Modeling | B25: Test0070 | C25: SubObject Vertices | D25: 1.765 | E25: 1.763 | F25: 1.759 | H25: 1 | I25: 1.763
A26: Modeling | B26: Test0100 | C26: Extrude Faces | D26: 7.625 | E26: 7.623 | F26: 7.661 | H26: 1 | I26: 7.625
A27: Modeling | B27: Test0110 | C27: Bevel Faces | D27: 5.31 | E27: 5.308 | F27: 5.316 | H27: 1 | I27: 5.31
A28: Modeling | B28: Test0041 | C28: Gizmo Transforms - Move | D28: 5.092 | E28: 5.337 | F28: 5.104 | H28: 1 | I28: 5.104
A29: Modeling | B29: Test0042 | C29: Gizmo Transforms - Rotate | D29: 3.38 | E29: 3.348 | F29: 3.355 | H29: 1 | I29: 3.355
A30: Modeling | B30: Test0043 | C30: Gizmo Transforms - Scale | D30: 9.815 | E30: 9.505 | F30: 9.85 | H30: 1 | I30: 9.815
A31: Modeling | B31: Test0370 | C31: Create Tank Scene | D31: 35.991 | E31: 35.397 | F31: 35.392 | H31: 1 | I31: 35.397
A32: Modeling | B32: Test0121 | C32: Vertex Soft-Selection | D32: 12.065 | E32: 12.044 | F32: 12.1 | H32: 1 | I32: 12.065
A33: Modeling | B33: Test0130 | C33: Multi-SubObject Texturing | D33: 48.242 | E33: 48.376 | F33: 47.415 | H33: 1 | I33: 48.242
A34: CPU Computing | B34: Test0125 | C34: Create Textures | D34: 122.375 | E34: 121.373 | F34: 122.856 | H34: 1 | I34: 122.375
A35: CPU Computing | B35: Test1000 | C35: Radiosity | D35: 38.432 | E35: 37.255 | F35: 37.567 | H35: 1 | I35: 37.567
A36: CPU Computing | B36: Test1500 | C36: SpiderWalk - Create Walk Cycle | D36: 17.664 | E36: 16.879 | F36: 16.912 | H36: 1 | I36: 16.912
A37: GPU Rendering | B37: Test1070 | C37: Quicksilver-Green Apples Basic | D37: 36.452 | E37: 36.339 | F37: 36.41 | H37: 1 | I37: 36.41
A38: GPU Rendering | B38: Test1075 | C38: Quicksilver-Green Apples Advanced | D38: 53.41 | E38: 19.761 | F38: 19.596 | H38: 1 | I38: 19.761
A39: GPU Rendering | B39: Test1090 | C39: Quicksilver - Army Camp | D39: 199.405 | E39: 70.036 | F39: 68.531 | H39: 1 | I39: 70.036
A40: GPU Rendering | B40: Test1100 | C40: Quicksilver - Chess Baisc | D40: 132.942 | E40: 21.216 | F40: 21.266 | H40: 1 | I40: 21.266
A41: GPU Rendering | B41: Test1105 | C41: Quicksilver - Chess Advanced | D41: 22.737 | E41: 22.489 | F41: 21.443 | H41: 1 | I41: 22.489
A42: GPU Rendering | B42: Test1110 | C42: Quicksilver - Chess Short | D42: 16.39 | E42: 16.33 | F42: 16.275 | H42: 1 | I42: 16.33
A43: GPU Rendering | B43: Test1120 | C43: Quicksilver - Chess DOF | D43: 21.307 | E43: 21.561 | F43: 21.353 | H43: 1 | I43: 21.353
A44: GPU Rendering | B44: Test1520 | C44: SpiderWalk - Quicksilver Render | D44: 33.541 | E44: 23.894 | F44: 23.928 | H44: 1 | I44: 23.928
A45: CPU Rendering | B45: Test1085 | C45: Mental Ray - Train Engine | D45: 448.186 | E45: 448.454 | F45: 449.297 | H45: 1 | I45: 448.454
A46: CPU Rendering | B46: Test1095 | C46: Mental Ray - Army Camp | D46: 1092.34 | E46: 1088.82 | F46: 1083.99 | H46: 1 | I46: 1088.82
A47: CPU Rendering | B47: Test1115 | C47: Mental Ray - Chess Short | D47: 487.187 | E47: 481.059 | F47: 490.917 | H47: 1 | I47: 487.187
A48: CPU Rendering | B48: Test1040 | C48: UnderWater | D48: 91.415 | E48: 91.681 | F48: 91.485 | H48: 1 | I48: 91.485
A49: CPU Rendering | B49: Test1060 | C49: UnderwaterEscape | D49: 62.177 | E49: 62.917 | F49: 62.753 | H49: 1 | I49: 62.753

Sheet Computed Results
C1: Test Run 1 | G1: Test Run 2 | K1: Test Run 3
C2: Score | D2: Wt | E2: Wt Result | G2: Score | H2: Wt | I2: Wt Result | K2: Score | L2: Wt | M2: Wt Result | O2: Median | P2: Baseline | Q2: Normalized Score
A3: =Results1!C2 -> Interactive Graphics | B3: Results1!A2 | C3: =Results1!D2 -> 17.999 | D3: =Results1!E2 -> 1 | E3: =C3*D3 -> 17.999 | G3: =Results2!D2 -> 17.638 | H3: =Results2!E2 -> 1 | I3: =G3*H3 -> 17.638 | K3: =Results3!D2 -> 17.891 | L3: =Results3!E2 -> 1 | M3: =K3*L3 -> 17.891 | O3: =MEDIAN(M3,I3,E3) -> 17.891 | P3: =Baseline!H2*Baseline!I2 -> 73.818 | Q3: =IF($O3=0,0,($P3/$O3)) -> 4.125985132
A4: =Results1!C3 -> Interactive Graphics | B4: =[specAPC2015.xlsm]Results1!A3 | C4: =Results1!D3 -> 49.236 | D4: =Results1!E3 -> 1 | E4: 49.236 | G4: =Results2!D3 -> 49.733 | H4: =Results2!E3 -> 1 | I4: 49.733 | K4: =Results3!D3 -> 48.988 | L4: =Results3!E3 -> 1 | M4: 48.988 | O4: 49.236 | P4: =Baseline!H3*Baseline!I3 -> 368.434 | Q4: 7.483020554
A5: =Results1!C4 -> Interactive Graphics | B5: =Results1!A4 -> Test0410 | C5: =Results1!D4 -> 15.22 | D5: =Results1!E4 -> 1 | E5: 15.22 | G5: =Results2!D4 -> 15.297 | H5: =Results2!E4 -> 1 | I5: 15.297 | K5: =Results3!D4 -> 15.3 | L5: =Results3!E4 -> 1 | M5: 15.3 | O5: 15.297 | P5: =Baseline!H4*Baseline!I4 -> 43.104 | Q5: 2.817807413
A6: =Results1!C5 -> Interactive Graphics | B6: =Results1!A5 -> Test0400 | C6: =Results1!D5 -> 5.15 | D6: =Results1!E5 -> 1 | E6: 5.15 | G6: =Results2!D5 -> 5.145 | H6: =Results2!E5 -> 1 | I6: 5.145 | K6: =Results3!D5 -> 5.127 | L6: =Results3!E5 -> 1 | M6: 5.127 | O6: 5.145 | P6: =Baseline!H5*Baseline!I5 -> 39.832 | Q6: 7.741885326
A7: =Results1!C6 -> Interactive Graphics | B7: =Results1!A6 -> Test0622 | C7: =Results1!D6 -> 55.292 | D7: =Results1!E6 -> 1 | E7: 55.292 | G7: =Results2!D6 -> 55.805 | H7: =Results2!E6 -> 1 | I7: 55.805 | K7: =Results3!D6 -> 55.976 | L7: =Results3!E6 -> 1 | M7: 55.976 | O7: 55.805 | P7: =Baseline!H6*Baseline!I6 -> 223.053 | Q7: 3.997007437
A8: =Results1!C7 -> Interactive Graphics | B8: =Results1!A7 -> Test0625 | C8: =Results1!D7 -> 13.693 | D8: =Results1!E7 -> 1 | E8: 13.693 | G8: =Results2!D7 -> 13.74 | H8: =Results2!E7 -> 1 | I8: 13.74 | K8: =Results3!D7 -> 13.756 | L8: =Results3!E7 -> 1 | M8: 13.756 | O8: 13.74 | P8: =Baseline!H7*Baseline!I7 -> 55.223 | Q8: 4.019141194
A9: =Results1!C8 -> Interactive Graphics | B9: =Results1!A8 -> Test0340 | C9: =Results1!D8 -> 15.468 | D9: =Results1!E8 -> 1 | E9: 15.468 | G9: =Results2!D8 -> 15.376 | H9: =Results2!E8 -> 1 | I9: 15.376 | K9: =Results3!D8 -> 15.359 | L9: =Results3!E8 -> 1 | M9: 15.359 | O9: 15.376 | P9: =Baseline!H8*Baseline!I8 -> 37.129 | Q9: 2.414737253
A10: =Results1!C9 -> Interactive Graphics | B10: =Results1!A9 -> Test0323 | C10: =Results1!D9 -> 6.499 | D10: =Results1!E9 -> 1 | E10: 6.499 | G10: =Results2!D9 -> 6.817 | H10: =Results2!E9 -> 1 | I10: 6.817 | K10: =Results3!D9 -> 6.8 | L10: =Results3!E9 -> 1 | M10: 6.8 | O10: 6.8 | P10: =Baseline!H9*Baseline!I9 -> 44.137 | Q10: 6.490735294
A11: =Results1!C10 -> Interactive Graphics | B11: =Results1!A10 -> Test0390 | C11: =Results1!D10 -> 3.388 | D11: =Results1!E10 -> 1 | E11: 3.388 | G11: =Results2!D10 -> 3.347 | H11: =Results2!E10 -> 1 | I11: 3.347 | K11: =Results3!D10 -> 3.386 | L11: =Results3!E10 -> 1 | M11: 3.386 | O11: 3.386 | P11: =Baseline!H10*Baseline!I10 -> 6.212 | Q11: 1.834613113
A12: =Results1!C11 -> Interactive Graphics | B12: =Results1!A11 -> Test0140 | C12: =Results1!D11 -> 10.292 | D12: =Results1!E11 -> 1 | E12: 10.292 | G12: =Results2!D11 -> 10.291 | H12: =Results2!E11 -> 1 | I12: 10.291 | K12: =Results3!D11 -> 10.288 | L12: =Results3!E11 -> 1 | M12: 10.288 | O12: 10.291 | P12: =Baseline!H11*Baseline!I11 -> 72.17 | Q12: 7.012923914
A13: =Results1!C12 -> Interactive Graphics | B13: =Results1!A12 -> Test0600 | C13: =Results1!D12 -> 14.327 | D13: =Results1!E12 -> 1 | E13: 14.327 | G13: =Results2!D12 -> 14.361 | H13: =Results2!E12 -> 1 | I13: 14.361 | K13: =Results3!D12 -> 14.315 | L13: =Results3!E12 -> 1 | M13: 14.315 | O13: 14.327 | P13: =Baseline!H12*Baseline!I12 -> 35.048 | Q13: 2.446290221
A14: =Results1!C13 -> Interactive Graphics | B14: =Results1!A13 -> Test0601 | C14: =Results1!D13 -> 24.12 | D14: =Results1!E13 -> 1 | E14: 24.12 | G14: =Results2!D13 -> 24.245 | H14: =Results2!E13 -> 1 | I14: 24.245 | K14: =Results3!D13 -> 24.177 | L14: =Results3!E13 -> 1 | M14: 24.177 | O14: 24.177 | P14: =Baseline!H13*Baseline!I13 -> 56.394 | Q14: 2.332547462
A15: =Results1!C14 -> Interactive Graphics | B15: =Results1!A14 -> Test0602 | C15: =Results1!D14 -> 20.219 | D15: =Results1!E14 -> 1 | E15: 20.219 | G15: =Results2!D14 -> 20.407 | H15: =Results2!E14 -> 1 | I15: 20.407 | K15: =Results3!D14 -> 20.243 | L15: =Results3!E14 -> 1 | M15: 20.243 | O15: 20.243 | P15: =Baseline!H14*Baseline!I14 -> 47.656 | Q15: 2.354196512
A16: =Results1!C15 -> Interactive Graphics | B16: =Results1!A15 -> Test1510 | C16: =Results1!D15 -> 34.714 | D16: =Results1!E15 -> 1 | E16: 34.714 | G16: =Results2!D15 -> 34.477 | H16: =Results2!E15 -> 1 | I16: 34.477 | K16: =Results3!D15 -> 34.612 | L16: =Results3!E15 -> 1 | M16: 34.612 | O16: 34.612 | P16: =Baseline!H15*Baseline!I15 -> 83.144 | Q16: 2.402172657
A17: =Results1!C16 -> Advanced Visual Styles | B17: =Results1!A16 -> Test0044 | C17: =Results1!D16 -> 55.447 | D17: =Results1!E16 -> 1 | E17: 55.447 | G17: =Results2!D16 -> 55.438 | H17: =Results2!E16 -> 1 | I17: 55.438 | K17: =Results3!D16 -> 55.475 | L17: =Results3!E16 -> 1 | M17: 55.475 | O17: 55.447 | P17: =Baseline!H16*Baseline!I16 -> 269.886 | Q17: 4.867459015 | S17: =GEOMEAN(Q3:Q16) -> 3.635335915 | T17: Interactive Graphics
A18: =Results1!C17 -> Advanced Visual Styles | B18: =Results1!A17 -> Test0040 | C18: =Results1!D17 -> 4.831 | D18: =Results1!E17 -> 1 | E18: 4.831 | G18: =Results2!D17 -> 4.713 | H18: =Results2!E17 -> 1 | I18: 4.713 | K18: =Results3!D17 -> 4.706 | L18: =Results3!E17 -> 1 | M18: 4.706 | O18: 4.713 | P18: =Baseline!H17*Baseline!I17 -> 33.833 | Q18: 7.178654785
A19: =Results1!C18 -> Advanced Visual Styles | B19: =Results1!A18 -> Test0045 | C19: =Results1!D18 -> 5.304 | D19: =Results1!E18 -> 1 | E19: 5.304 | G19: =Results2!D18 -> 5.128 | H19: =Results2!E18 -> 1 | I19: 5.128 | K19: =Results3!D18 -> 5.121 | L19: =Results3!E18 -> 1 | M19: 5.121 | O19: 5.128 | P19: =Baseline!H18*Baseline!I18 -> 32.625 | Q19: 6.362129485
A20: =Results1!C19 -> Advanced Visual Styles | B20: =Results1!A19 -> Test2040 | C20: =Results1!D19 -> 7.275 | D20: =Results1!E19 -> 1 | E20: 7.275 | G20: =Results2!D19 -> 6.819 | H20: =Results2!E19 -> 1 | I20: 6.819 | K20: =Results3!D19 -> 7.264 | L20: =Results3!E19 -> 1 | M20: 7.264 | O20: 7.264 | P20: =Baseline!H19*Baseline!I19 -> 19.658 | Q20: 2.706222467
A21: =Results1!C20 -> Advanced Visual Styles | B21: =Results1!A20 -> Test0531 | C21: =Results1!D20 -> 15.399 | D21: =Results1!E20 -> 1 | E21: 15.399 | G21: =Results2!D20 -> 15.417 | H21: =Results2!E20 -> 1 | I21: 15.417 | K21: =Results3!D20 -> 15.4 | L21: =Results3!E20 -> 1 | M21: 15.4 | O21: 15.4 | P21: =Baseline!H20*Baseline!I20 -> 105.424 | Q21: 6.845714286
A22: =Results1!C21 -> Advanced Visual Styles | B22: =Results1!A21 -> Test0210 | C22: =Results1!D21 -> 7.296 | D22: =Results1!E21 -> 1 | E22: 7.296 | G22: =Results2!D21 -> 7.316 | H22: =Results2!E21 -> 1 | I22: 7.316 | K22: =Results3!D21 -> 7.263 | L22: =Results3!E21 -> 1 | M22: 7.263 | O22: 7.296 | P22: =Baseline!H21*Baseline!I21 -> 21.69 | Q22: 2.972861842
A23: =Results1!C22 -> Large Model CPU | B23: =Results1!A22 -> Test8020 | C23: =Results1!D22 -> 196.228 | D23: =Results1!E22 -> 1 | E23: 196.228 | G23: =Results2!D22 -> 194.811 | H23: =Results2!E22 -> 1 | I23: 194.811 | K23: =Results3!D22 -> 194.854 | L23: =Results3!E22 -> 1 | M23: 194.854 | O23: 194.854 | P23: =Baseline!H22*Baseline!I22 -> 484.755 | Q23: 2.487785727
A24: =Results1!C23 -> Large Model GPU | B24: =Results1!A23 -> Test8030 | C24: =Results1!D23 -> 49.74 | D24: =Results1!E23 -> 1 | E24: 49.74 | G24: =Results2!D23 -> 50.974 | H24: =Results2!E23 -> 1 | I24: 50.974 | K24: =Results3!D23 -> 49.978 | L24: =Results3!E23 -> 1 | M24: 49.978 | O24: 49.978 | P24: =Baseline!H23*Baseline!I23 -> 283.325 | Q24: 5.668994358 | S24: =GEOMEAN(Q17:Q22) -> 4.800842715 | T24: Advanced Visual Styles
A25: =Results1!C24 -> Modeling | B25: =Results1!A24 -> Test0050 | C25: =Results1!D24 -> 2.74 | D25: =Results1!E24 -> 1 | E25: 2.74 | G25: =Results2!D24 -> 2.714 | H25: =Results2!E24 -> 1 | I25: 2.714 | K25: =Results3!D24 -> 2.713 | L25: =Results3!E24 -> 1 | M25: 2.713 | O25: 2.714 | P25: =Baseline!H24*Baseline!I24 -> 14.485 | Q25: 5.337140752
A26: =Results1!C25 -> Modeling | B26: =Results1!A25 -> Test0070 | C26: =Results1!D25 -> 0.832 | D26: =Results1!E25 -> 1 | E26: 0.832 | G26: =Results2!D25 -> 0.83 | H26: =Results2!E25 -> 1 | I26: 0.83 | K26: =Results3!D25 -> 0.826 | L26: =Results3!E25 -> 1 | M26: 0.826 | O26: 0.83 | P26: =Baseline!H25*Baseline!I25 -> 1.763 | Q26: 2.124096386 | S26: =Q23 -> 2.487785727 | T26: Large Model CPU
A27: =Results1!C26 -> Modeling | B27: =Results1!A26 -> Test0100 | C27: =Results1!D26 -> 2.507 | D27: =Results1!E26 -> 1 | E27: 2.507 | G27: =Results2!D26 -> 2.495 | H27: =Results2!E26 -> 1 | I27: 2.495 | K27: =Results3!D26 -> 2.502 | L27: =Results3!E26 -> 1 | M27: 2.502 | O27: 2.502 | P27: =Baseline!H26*Baseline!I26 -> 7.625 | Q27: 3.04756195 | S27: =Q24 -> 5.668994358 | T27: Large Model GPU
A28: =Results1!C27 -> Modeling | B28: =Results1!A27 -> Test0110 | C28: =Results1!D27 -> 1.402 | D28: =Results1!E27 -> 1 | E28: 1.402 | G28: =Results2!D27 -> 1.4 | H28: =Results2!E27 -> 1 | I28: 1.4 | K28: =Results3!D27 -> 1.4 | L28: =Results3!E27 -> 1 | M28: 1.4 | O28: 1.4 | P28: =Baseline!H27*Baseline!I27 -> 5.31 | Q28: 3.792857143
A29: =Results1!C28 -> Modeling | B29: =Results1!A28 -> Test0041 | C29: =Results1!D28 -> 1.641 | D29: =Results1!E28 -> 1 | E29: 1.641 | G29: =Results2!D28 -> 1.659 | H29: =Results2!E28 -> 1 | I29: 1.659 | K29: =Results3!D28 -> 1.632 | L29: =Results3!E28 -> 1 | M29: 1.632 | O29: 1.641 | P29: =Baseline!H28*Baseline!I28 -> 5.104 | Q29: 3.110298598
A30: =Results1!C29 -> Modeling | B30: =Results1!A29 -> Test0042 | C30: =Results1!D29 -> 1.242 | D30: =Results1!E29 -> 1 | E30: 1.242 | G30: =Results2!D29 -> 1.25 | H30: =Results2!E29 -> 1 | I30: 1.25 | K30: =Results3!D29 -> 1.245 | L30: =Results3!E29 -> 1 | M30: 1.245 | O30: 1.245 | P30: =Baseline!H29*Baseline!I29 -> 3.355 | Q30: 2.694779116
A31: =Results1!C30 -> Modeling | B31: =Results1!A30 -> Test0043 | C31: =Results1!D30 -> 2.697 | D31: =Results1!E30 -> 1 | E31: 2.697 | G31: =Results2!D30 -> 2.552 | H31: =Results2!E30 -> 1 | I31: 2.552 | K31: =Results3!D30 -> 2.671 | L31: =Results3!E30 -> 1 | M31: 2.671 | O31: 2.671 | P31: =Baseline!H30*Baseline!I30 -> 9.815 | Q31: 3.674653688
A32: =Results1!C31 -> Modeling | B32: =Results1!A31 -> Test0370 | C32: =Results1!D31 -> 14.527 | D32: =Results1!E31 -> 1 | E32: 14.527 | G32: =Results2!D31 -> 14.603 | H32: =Results2!E31 -> 1 | I32: 14.603 | K32: =Results3!D31 -> 14.569 | L32: =Results3!E31 -> 1 | M32: 14.569 | O32: 14.569 | P32: =Baseline!H31*Baseline!I31 -> 35.397 | Q32: 2.429610817
A33: =Results1!C32 -> Modeling | B33: =Results1!A32 -> Test0121 | C33: =Results1!D32 -> 6.146 | D33: =Results1!E32 -> 1 | E33: 6.146 | G33: =Results2!D32 -> 6.116 | H33: =Results2!E32 -> 1 | I33: 6.116 | K33: =Results3!D32 -> 6.129 | L33: =Results3!E32 -> 1 | M33: 6.129 | O33: 6.129 | P33: =Baseline!H32*Baseline!I32 -> 12.065 | Q33: 1.968510361
A34: =Results1!C33 -> Modeling | B34: =Results1!A33 -> Test0130 | C34: =Results1!D33 -> 18.459 | D34: =Results1!E33 -> 1 | E34: 18.459 | G34: =Results2!D33 -> 18.773 | H34: =Results2!E33 -> 1 | I34: 18.773 | K34: =Results3!D33 -> 18.72 | L34: =Results3!E33 -> 1 | M34: 18.72 | O34: 18.72 | P34: =Baseline!H33*Baseline!I33 -> 48.242 | Q34: 2.577029915
A35: =Results1!C34 -> CPU Computing | B35: =Results1!A34 -> Test0125 | C35: =Results1!D34 -> 25.285 | D35: =Results1!E34 -> 1 | E35: =C35*D35 -> 25.285 | G35: =Results2!D34 -> 24.901 | H35: =Results2!E34 -> 1 | I35: =G35*H35 -> 24.901 | K35: =Results3!D34 -> 25.987 | L35: =Results3!E34 -> 1 | M35: =K35*L35 -> 25.987 | O35: =MEDIAN(M35,I35,E35) -> 25.285 | P35: =Baseline!H34*Baseline!I34 -> 122.375 | Q35: =IF($O35=0,0,($P35/$O35)) -> 4.839825984
A36: =Results1!C35 -> CPU Computing | B36: =Results1!A35 -> Test1000 | C36: =Results1!D35 -> 7.677 | D36: =Results1!E35 -> 1 | E36: 7.677 | G36: =Results2!D35 -> 8.523 | H36: =Results2!E35 -> 1 | I36: 8.523 | K36: =Results3!D35 -> 7.566 | L36: =Results3!E35 -> 1 | M36: 7.566 | O36: 7.677 | P36: =Baseline!H35*Baseline!I35 -> 37.567 | Q36: 4.893447961 | S36: =GEOMEAN(Q25:Q34) -> 2.948993026 | T36: Modeling
A37: =Results1!C36 -> CPU Computing | B37: =Results1!A36 -> Test1500 | C37: =Results1!D36 -> 9.837 | D37: =Results1!E36 -> 1 | E37: 9.837 | G37: =Results2!D36 -> 9.653 | H37: =Results2!E36 -> 1 | I37: 9.653 | K37: =Results3!D36 -> 10.27 | L37: =Results3!E36 -> 1 | M37: 10.27 | O37: 9.837 | P37: =Baseline!H36*Baseline!I36 -> 16.912 | Q37: 1.71922334
A38: =Results1!C37 -> GPU Rendering | B38: =Results1!A37 -> Test1070 | C38: =Results1!D37 -> 5.739 | D38: =Results1!E37 -> 1 | E38: 5.739 | G38: =Results2!D37 -> 5.751 | H38: =Results2!E37 -> 1 | I38: 5.751 | K38: =Results3!D37 -> 5.744 | L38: =Results3!E37 -> 1 | M38: 5.744 | O38: 5.744 | P38: =Baseline!H37*Baseline!I37 -> 36.41 | Q38: 6.338788301
A39: =Results1!C38 -> GPU Rendering | B39: =Results1!A38 -> Test1075 | C39: =Results1!D38 -> 3.425 | D39: =Results1!E38 -> 1 | E39: 3.425 | G39: =Results2!D38 -> 3.394 | H39: =Results2!E38 -> 1 | I39: 3.394 | K39: =Results3!D38 -> 3.44 | L39: =Results3!E38 -> 1 | M39: 3.44 | O39: 3.425 | P39: =Baseline!H38*Baseline!I38 -> 19.761 | Q39: 5.769635036 | S39: =GEOMEAN(Q35:Q37) -> 3.440268507 | T39: CPU Computing
A40: =Results1!C39 -> GPU Rendering | B40: =Results1!A39 -> Test1090 | C40: =Results1!D39 -> 23.332 | D40: =Results1!E39 -> 1 | E40: 23.332 | G40: =Results2!D39 -> 23.256 | H40: =Results2!E39 -> 1 | I40: 23.256 | K40: =Results3!D39 -> 23.372 | L40: =Results3!E39 -> 1 | M40: 23.372 | O40: 23.332 | P40: =Baseline!H39*Baseline!I39 -> 70.036 | Q40: 3.001714384
A41: =Results1!C40 -> GPU Rendering | B41: =Results1!A40 -> Test1100 | C41: =Results1!D40 -> 6.306 | D41: =Results1!E40 -> 1 | E41: 6.306 | G41: =Results2!D40 -> 6.223 | H41: =Results2!E40 -> 1 | I41: 6.223 | K41: =Results3!D40 -> 6.292 | L41: =Results3!E40 -> 1 | M41: 6.292 | O41: 6.292 | P41: =Baseline!H40*Baseline!I40 -> 21.266 | Q41: 3.379847425
A42: =Results1!C41 -> GPU Rendering | B42: =Results1!A41 -> Test1105 | C42: =Results1!D41 -> 6.291 | D42: =Results1!E41 -> 1 | E42: 6.291 | G42: =Results2!D41 -> 6.258 | H42: =Results2!E41 -> 1 | I42: 6.258 | K42: =Results3!D41 -> 6.293 | L42: =Results3!E41 -> 1 | M42: 6.293 | O42: 6.291 | P42: =Baseline!H41*Baseline!I41 -> 22.489 | Q42: 3.574789382
A43: =Results1!C42 -> GPU Rendering | B43: =Results1!A42 -> Test1110 | C43: =Results1!D42 -> 5.472 | D43: =Results1!E42 -> 1 | E43: 5.472 | G43: =Results2!D42 -> 5.387 | H43: =Results2!E42 -> 1 | I43: 5.387 | K43: =Results3!D42 -> 5.435 | L43: =Results3!E42 -> 1 | M43: 5.435 | O43: 5.435 | P43: =Baseline!H42*Baseline!I42 -> 16.33 | Q43: 3.004599816
A44: =Results1!C43 -> GPU Rendering | B44: =Results1!A43 -> Test1120 | C44: =Results1!D43 -> 4.584 | D44: =Results1!E43 -> 1 | E44: 4.584 | G44: =Results2!D43 -> 4.498 | H44: =Results2!E43 -> 1 | I44: 4.498 | K44: =Results3!D43 -> 4.489 | L44: =Results3!E43 -> 1 | M44: 4.489 | O44: 4.498 | P44: =Baseline!H43*Baseline!I43 -> 21.353 | Q44: 4.747220987
A45: =Results1!C44 -> GPU Rendering | B45: =Results1!A44 -> Test1520 | C45: =Results1!D44 -> 9.304 | D45: =Results1!E44 -> 1 | E45: 9.304 | G45: =Results2!D44 -> 9.182 | H45: =Results2!E44 -> 1 | I45: 9.182 | K45: =Results3!D44 -> 9.214 | L45: =Results3!E44 -> 1 | M45: 9.214 | O45: 9.214 | P45: =Baseline!H44*Baseline!I44 -> 23.928 | Q45: 2.596917734
A46: =Results1!C45 -> CPU Rendering | B46: =Results1!A45 -> Test8120 | C46: =Results1!D45 -> 68.871 | D46: =Results1!E45 -> 1 | E46: 68.871 | G46: =Results2!D45 -> 67.94 | H46: =Results2!E45 -> 1 | I46: 67.94 | K46: =Results3!D45 -> 68.396 | L46: =Results3!E45 -> 1 | M46: 68.396 | O46: 68.396 | P46: =Baseline!H45*Baseline!I45 -> 448.454 | Q46: 6.556728464
A47: =Results1!C46 -> CPU Rendering | B47: =Results1!A46 -> Test1095 | C47: =Results1!D46 -> 156.446 | D47: =Results1!E46 -> 1 | E47: 156.446 | G47: =Results2!D46 -> 151.99 | H47: =Results2!E46 -> 1 | I47: 151.99 | K47: =Results3!D46 -> 154.267 | L47: =Results3!E46 -> 1 | M47: 154.267 | O47: 154.267 | P47: =Baseline!H46*Baseline!I46 -> 1088.82 | Q47: 7.058022779 | S47: =GEOMEAN(Q38:Q45) -> 3.858508609 | T47: GPU Rendering
A48: =Results1!C47 -> CPU Rendering | B48: =Results1!A47 -> Test1115 | C48: =Results1!D47 -> 70.103 | D48: =Results1!E47 -> 1 | E48: 70.103 | G48: =Results2!D47 -> 67.179 | H48: =Results2!E47 -> 1 | I48: 67.179 | K48: =Results3!D47 -> 67.803 | L48: =Results3!E47 -> 1 | M48: 67.803 | O48: 67.803 | P48: =Baseline!H47*Baseline!I47 -> 487.187 | Q48: 7.185331033
A49: =Results1!C48 -> CPU Rendering | B49: =Results1!A48 -> Test1040 | C49: =Results1!D48 -> 15.563 | D49: =Results1!E48 -> 1 | E49: 15.563 | G49: =Results2!D48 -> 15.428 | H49: =Results2!E48 -> 1 | I49: 15.428 | K49: =Results3!D48 -> 15.613 | L49: =Results3!E48 -> 1 | M49: 15.613 | O49: 15.563 | P49: =Baseline!H48*Baseline!I48 -> 91.485 | Q49: 5.878365354
A50: =Results1!C49 -> CPU Rendering | B50: =Results1!A49 -> Test1060 | C50: =Results1!D49 -> 12.021 | D50: =Results1!E49 -> 1 | E50: 12.021 | G50: =Results2!D49 -> 11.723 | H50: =Results2!E49 -> 1 | I50: 11.723 | K50: =Results3!D49 -> 11.827 | L50: =Results3!E49 -> 1 | M50: 11.827 | O50: 11.827 | P50: =Baseline!H49*Baseline!I49 -> 62.753 | Q50: 5.305910205
A51: =Results1!C50 -> 0 | B51: =Results1!A50 -> 0 | C51: =Results1!D50 -> 0 | D51: =Results1!E50 -> 0 | E51: 0 | G51: =Results2!D50 -> 0 | H51: =Results2!E50 -> 0 | I51: 0 | K51: =Results3!D50 -> 0 | L51: =Results3!E50 -> 0 | M51: 0 | O51: 0 | P51: =Baseline!H50*Baseline!I50 -> 0 | Q51: 0
A52: =Results1!C51 -> 0 | B52: =Results1!A51 -> 0 | C52: =Results1!D51 -> 0 | D52: =Results1!E51 -> 0 | E52: 0 | G52: =Results2!D51 -> 0 | H52: =Results2!E51 -> 0 | I52: 0 | K52: =Results3!D51 -> 0 | L52: =Results3!E51 -> 0 | M52: 0 | O52: 0 | P52: =Baseline!H51*Baseline!I51 -> 0 | Q52: 0 | S52: =GEOMEAN(Q46:Q50) -> 6.355748465 | T52: CPU Rendering

Sheet SystemInformation
A1: ========================================== | G1: =OFFSET(INDEX(A1:A60,MATCH(G2,A1:A60,0)),0,1) -> No AA
A2: GRAPHICS HARDWARE CONFIGURATION | G2: Anti-Aliasing Setting
A3: ==========================================
A4: Description | B4: NVIDIA Quadro K5000 | G4: =OFFSET(INDEX(A1:A10,MATCH(G5,A1:A10,0)),0,1) -> NVIDIA Quadro K5000
A5: InstalledDriverVersion | B5: 9.18.13.3250 | G5: Description
A6: DriverDate | B6: 01/24/2014 00 | C6: 0 | D6: 0
G7: =OFFSET(INDEX(A1:A10,MATCH(G8,A1:A10,0)),0,1) -> 9.18.13.3250
G8: InstalledDriverVersion
A9: ==========================================
A10: SYSTEM HARDWARE CONFIGURATION
A11: ==========================================
A12: Manufacturer | B12: Hewlett-Packard
A13: Model | B13: HP Z420 Workstation
A15: CPU DETAIL
A16: CPU0
A17: Name | B17: Intel(R) Xeon(R) CPU E5-1660 v2 @ 3.70GHz
A18: L2CacheSize | B18: 1536
A19: L3CacheSize | B19: 15360
A20: MaxClockSpeed | B20: 3701
A21: NumberOfCores | B21: 6
A22: NumberOfLogicalProcessors | B22: 6
A25: MEMORY DETAIL
A26: System Memory Stats Prior to Benchmark Start
A27: Total Installed System RAM | B27: 16699200
A28: Total Free System RAM | B28: 14736816
A29: Total Page File | B29: 33396536
A30: Available Page File | B30: 31429520
A32: ==========================================
A33: SOFTWARE CONFIGURATION
A34: ==========================================
A35: Operating System | B35: Microsoft Windows 7 Professional 64-bit
A37: Anti-Aliasing Setting | B37: No AA
A38: Test run using application window size | B38: 1912x1076
A39: TEST STATUS | B39: SUCCESSFUL

Sheet TestConfig
A1: <?xml | B1: version="1.0" | C1: encoding="utf-8"?
A2: <Results | B2: Graphics="" | C2: Resolution="[1920,1200]" | D2: Date="7/29/2014 | E2: 03:07:58 | F2: PM" | G2: AASetting="none"

Sheet ExportSheet
A1: =Overview!C7 -> CPU Composite Score | B1: =Overview!E7 -> 4.66709945
A2: =Overview!C8 -> GPU Composite Score | B2: =Overview!E8 -> 3.681969612
A3: =Overview!C9 -> Large Model Composite Score | B3: =Overview!E9 -> 3.755428504
A4: =Overview!C10 -> Large Model CPU | B4: =Overview!E10 -> 2.487785727
A5: =Overview!C11 -> LargeModel GPU | B5: =Overview!E11 -> 5.668994358
A6: =Overview!C12 -> Interactive Graphics | B6: =Overview!E12 -> 3.635335915
A7: =Overview!C13 -> Advanced Visual Styles | B7: =Overview!E13 -> 4.800842715
A8: =Overview!C14 -> Modeling | B8: =Overview!E14 -> 2.948993026
A9: =Overview!C15 -> CPU Computing | B9: =Overview!E15 -> 3.440268507
A10: =Overview!C16 -> CPU Rendering | B10: =Overview!E16 -> 6.355748465
A11: =Overview!C17 -> GPU Rendering | B11: =Overview!E17 -> 3.858508609
